fUST/lending_fUST_20260526
["ID","MTS","AMOUNT","RATE_DAILY","PERIOD"]
[422995378,1779726651000,-500.0,9.315e-05,2]
[422995376,1779726651000,-500.0,9.315e-05,2]
[422995374,1779726651000,-293.21237687,9.315e-05,2]
[422995371,1779726651000,-500.0,9.315e-05,2]
[422995373,1779726651000,-500.0,9.315e-05,2]
[422995370,1779726651000,-500.0,9.315e-05,2]
[422995367,1779726651000,-500.0,9.315e-05,2]
[422995429,1779726652000,-12.73909288,9.315e-05,2]
[422995426,1779726652000,-1393.83,8.493e-05,2]
[422995434,1779726652000,-1393.83,8.767e-05,2]
[422995433,1779726652000,-500.0,8.493e-05,2]
[422995431,1779726652000,-367.04868582,8.219e-05,2]
[422995436,1779726652000,-1335.61136692,9.041e-05,2]
[422995432,1779726652000,-381.13251418,8.219e-05,2]
[422995435,1779726652000,-58.21863308,9.041e-05,2]
[422995441,1779726652000,-755.73,9.315e-05,2]
[422995442,1779726652000,-500.0,9.315e-05,2]
[422995427,1779726652000,-304.24044852,9.315e-05,2]
[422995430,1779726652000,-500.0,8.219e-05,2]
[422995428,1779726652000,-500.0,9.315e-05,2]
[422995412,1779726652000,-500.0,9.315e-05,2]
[422995423,1779726652000,-195.75955148,9.315e-05,2]
[422995424,1779726652000,-252.192,8.219e-05,2]
[422995420,1779726652000,-126.09817239,9.315e-05,2]
[422995421,1779726652000,-500.0,9.315e-05,2]
[422995422,1779726652000,-500.0,9.315e-05,2]
[422995419,1779726652000,-373.90182761,9.315e-05,2]
[422995416,1779726652000,-677.5,9.315e-05,2]
[422995415,1779726652000,-500.0,9.315e-05,2]
[422995418,1779726652000,-1370.93,9.315e-05,2]
[422995413,1779726652000,-734.26,9.315e-05,2]
[422995414,1779726652000,-500.0,9.315e-05,2]
[422995417,1779726652000,-500.0,9.315e-05,2]
[422995443,1779726652000,-1296.75,9.315e-05,2]
[422995425,1779726652000,-1141.638,8.219e-05,2]
[422995439,1779726652000,-500.0,9.315e-05,2]
[422995438,1779726652000,-556.46,9.315e-05,2]
[422995440,1779726652000,-500.0,9.315e-05,2]
[422995437,1779726652000,-635.91090712,9.315e-05,2]
[422995469,1779726652000,-4792.54,9.315e-05,2]
[422995471,1779726652000,-2854.90345316,9.315e-05,2]
[422995470,1779726652000,-500.0,9.315e-05,2]
[422995464,1779726652000,-500.0,9.315e-05,2]
[422995462,1779726652000,-500.0,9.315e-05,2]
[422995460,1779726652000,-500.0,9.315e-05,2]
[422995461,1779726652000,-500.0,9.315e-05,2]
[422995459,1779726652000,-1179.92,9.315e-05,2]
[422995466,1779726652000,-691.62,9.315e-05,2]
[422995457,1779726652000,-500.0,9.315e-05,2]
[422995468,1779726652000,-775.73818884,9.315e-05,2]
[422995467,1779726652000,-1329.20181116,9.315e-05,2]
[422995465,1779726652000,-500.0,9.315e-05,2]
[422995463,1779726652000,-547.5,9.315e-05,2]
[422995455,1779726652000,-500.0,9.315e-05,2]
[422995445,1779726652000,-500.0,9.315e-05,2]
[422995458,1779726652000,-500.0,9.315e-05,2]
[422995447,1779726652000,-590.06,9.315e-05,2]
[422995446,1779726652000,-500.0,9.315e-05,2]
[422995448,1779726652000,-500.0,9.315e-05,2]
[422995454,1779726652000,-500.0,9.315e-05,2]
[422995444,1779726652000,-500.0,9.315e-05,2]
[422995449,1779726652000,-1818.33,9.315e-05,2]
[422995450,1779726652000,-500.0,9.315e-05,2]
[422995453,1779726652000,-500.0,9.315e-05,2]
[422995452,1779726652000,-1284.58,9.315e-05,2]
[422995451,1779726652000,-500.0,9.315e-05,2]
[422995456,1779726652000,-651.48,9.315e-05,2]
[422995479,1779726664000,-748.1812,8.493e-05,2]
[422995484,1779726664000,-487.51562305,9.041e-05,2]
[422995480,1779726664000,-500.0,8.767e-05,2]
[422995481,1779726664000,-460.3149216,8.767e-05,2]
[422995477,1779726664000,-501.98033126,8.219e-05,2]
[422995478,1779726664000,-500.0,8.219e-05,2]
[422995476,1779726664000,-152.0,6.186e-05,7]
[422995475,1779726664000,-152.0,6.186e-05,7]
[422995474,1779726664000,152.0,0.00014539,30]
[422995486,1779726664000,-1858.59362007,9.315e-05,2]
[422995482,1779726664000,-287.8662784,8.767e-05,2]
[422995485,1779726664000,-260.66557695,9.041e-05,2]
[422995483,1779726664000,-500.0,9.041e-05,2]
[422995488,1779726664000,-500.0,8.219e-05,2]
[422995487,1779726664000,-5000.0,8.137e-05,2]
[422995494,1779726664000,-500.0,8.493e-05,2]
[422995498,1779726664000,-629.98,9.041e-05,2]
[422995493,1779726664000,-629.98,8.493e-05,2]
[422995496,1779726664000,-629.98,8.767e-05,2]
[422995495,1779726664000,-500.0,8.493e-05,2]
[422995497,1779726664000,-501.8787659,8.767e-05,2]
[422995491,1779726664000,-629.98,8.219e-05,2]
[422995492,1779726664000,-500.0,8.219e-05,2]
[422995489,1779726664000,-500.0,8.219e-05,2]
[422995500,1779726664000,-635.8595966,9.315e-05,2]
[422995490,1779726664000,-500.0,8.219e-05,2]
[422995499,1779726664000,-3256.36292677,9.315e-05,2]
[422995501,1779726699000,-5000.0,7.551e-05,2]
[422995502,1779726716000,-152.0,6.188e-05,7]
[422995503,1779726732000,-5000.0,7.627e-05,2]
[422995504,1779726899000,5963.81,0.00015,30]
[422995505,1779726907000,2667.11090989,0.00017808,120]
[422995507,1779727059000,172.375952,3.232e-05,2]
[422995568,1779727832000,-300.0,5.479e-05,2]
[422995556,1779727832000,-221.45196829,5.424e-05,2]
[422995560,1779727832000,-500.0,5.424e-05,2]
[422995572,1779727832000,-300.0,5.532e-05,2]
[422995564,1779727832000,-5000.0,5.425e-05,2]
[422995558,1779727832000,-360.65247611,5.424e-05,2]
[422995570,1779727832000,-300.0,5.532e-05,2]
[422995562,1779727832000,-480.0,5.424e-05,2]
[422995574,1779727832000,-294.12115921,5.532e-05,2]
[422995566,1779727832000,-185.7893194,5.479e-05,2]
[422995664,1779727838000,-5000.0,5.477e-05,2]
[422995667,1779727838000,-300.0,5.532e-05,2]
[422995665,1779727838000,-5.87884079,5.532e-05,2]
[422995666,1779727838000,-300.0,5.532e-05,2]
[422995682,1779727839000,-1184.31279733,6.019e-05,2]
[422995692,1779727839000,-1184.31279733,6.019e-05,2]
[422995693,1779727839000,-1184.31279733,6.019e-05,2]
[422995683,1779727839000,-1184.31279733,6.019e-05,2]
[422995686,1779727839000,-1184.31279733,6.019e-05,2]
[422995681,1779727839000,-1184.31279733,6.019e-05,2]
[422995678,1779727839000,-600.0,5.642e-05,2]
[422995684,1779727839000,-1184.31279733,6.019e-05,2]
[422995685,1779727839000,-1184.31279733,6.019e-05,2]
[422995676,1779727839000,-300.0,5.532e-05,2]
[422995679,1779727839000,-300.0,6.019e-05,2]
[422995677,1779727839000,-300.0,5.532e-05,2]
[422995671,1779727839000,-300.0,5.532e-05,2]
[422995674,1779727839000,-300.0,5.532e-05,2]
[422995672,1779727839000,-300.0,5.532e-05,2]
[422995669,1779727839000,-300.0,5.532e-05,2]
[422995680,1779727839000,-300.0,6.019e-05,2]
[422995673,1779727839000,-300.0,5.532e-05,2]
[422995670,1779727839000,-300.0,5.532e-05,2]
[422995668,1779727839000,-300.0,5.532e-05,2]
[422995688,1779727839000,-1184.31279733,6.019e-05,2]
[422995675,1779727839000,-300.0,5.532e-05,2]
[422995687,1779727839000,-1184.31279733,6.019e-05,2]
[422995699,1779727839000,-172.375952,6.464e-05,2]
[422995691,1779727839000,-1184.31279733,6.019e-05,2]
[422995690,1779727839000,-1184.31279733,6.019e-05,2]
[422995714,1779727839000,-886.0,7.2e-05,2]
[422995713,1779727839000,-435.0,7.2e-05,2]
[422995711,1779727839000,-14513.73601435,7.2e-05,2]
[422995710,1779727839000,-13727.60861529,7.2e-05,2]
[422995707,1779727839000,-227727.20079684,7.2e-05,2]
[422995709,1779727839000,-3172.76660099,7.2e-05,2]
[422995708,1779727839000,-193796.7500464,7.2e-05,2]
[422995706,1779727839000,-864.0,6.826e-05,2]
[422995702,1779727839000,-2528.60822858,6.584e-05,2]
[422995701,1779727839000,-2273.88198561,6.484e-05,2]
[422995712,1779727839000,-31539.60200975,7.2e-05,2]
[422995700,1779727839000,-150.307,6.464e-05,2]
[422995704,1779727839000,-2755.42267442,6.684e-05,2]
[422995705,1779727839000,-2783.33447164,6.784e-05,2]
[422995715,1779727839000,-488.71176129,7.2e-05,2]
[422995698,1779727839000,-560.738,6.464e-05,2]
[422995695,1779727839000,-351.83832963,6.112e-05,2]
[422995689,1779727839000,-1184.31279733,6.019e-05,2]
[422995697,1779727839000,-1125.00906431,6.384e-05,2]
[422995696,1779727839000,-720.0,6.206e-05,2]
[422995694,1779727839000,-5000.0,6.02e-05,2]
[422995703,1779727839000,-420.0,6.621e-05,2]
[422995726,1779727841000,-380.36253887,7.2e-05,2]
[422995729,1779727841000,-1719.26634701,7.2e-05,2]
[422995730,1779727841000,-5886.10477198,7.2e-05,2]
[422995746,1779727844000,-259.14535789,7.2e-05,2]
[422995745,1779727844000,-1000.0,7.2e-05,2]
[422995768,1779727847000,-39206.82461511,7.2e-05,2]
[422995767,1779727847000,-8097.24928782,7.2e-05,2]
[422995766,1779727847000,-1039.65,7.128e-05,2]
[422995765,1779727847000,-3960.35,7.128e-05,2]
[422995790,1779728473000,-165.267406,6.616e-05,2]
[422995846,1779729033000,-5000.0,6.196e-05,2]
[422995836,1779729033000,-1120.78017483,6.134e-05,2]
[422995842,1779729033000,-296.53192399,6.134e-05,2]
[422995844,1779729033000,-3582.68790118,6.134e-05,2]
[422995853,1779729033000,-407.11485685,6.289e-05,2]
[422995851,1779729033000,-649.22090989,6.289e-05,2]
[422995855,1779729033000,-1056.33576674,6.289e-05,2]
[422995857,1779729033000,-1056.33576674,6.289e-05,2]
[422995859,1779729033000,-1056.33576674,6.289e-05,2]
[422995861,1779729033000,-38.02438357,6.289e-05,2]
[422995849,1779729033000,-1056.33576674,6.289e-05,2]
[422996078,1779729038000,-500.0,6.195e-05,2]
[422996073,1779729038000,-500.0,6.195e-05,2]
[422996082,1779729038000,-500.0,6.195e-05,2]
[422996080,1779729038000,-500.0,6.195e-05,2]
[422996083,1779729038000,-500.0,6.195e-05,2]
[422996099,1779729038000,-500.0,6.195e-05,2]
[422996087,1779729038000,-500.0,6.195e-05,2]
[422996088,1779729038000,-500.0,6.195e-05,2]
[422996101,1779729038000,-500.0,6.195e-05,2]
[422996103,1779729038000,-500.0,6.195e-05,2]
[422996104,1779729038000,-500.0,6.195e-05,2]
[422996085,1779729038000,-500.0,6.195e-05,2]
[422996070,1779729038000,-500.0,6.195e-05,2]
[422996074,1779729038000,-500.0,6.195e-05,2]
[422996077,1779729038000,-500.0,6.195e-05,2]
[422996069,1779729038000,-500.0,6.195e-05,2]
[422996071,1779729038000,-500.0,6.195e-05,2]
[422996068,1779729038000,-500.0,6.195e-05,2]
[422996067,1779729038000,-500.0,6.195e-05,2]
[422996066,1779729038000,-500.0,6.195e-05,2]
[422996057,1779729038000,-500.0,6.195e-05,2]
[422996058,1779729038000,-500.0,6.195e-05,2]
[422996055,1779729038000,-500.0,6.195e-05,2]
[422996060,1779729038000,-500.0,6.195e-05,2]
[422996062,1779729038000,-500.0,6.195e-05,2]
[422996064,1779729038000,-500.0,6.195e-05,2]
[422996096,1779729038000,-500.0,6.195e-05,2]
[422996075,1779729038000,-301.09439648,6.195e-05,2]
[422996090,1779729038000,-500.0,6.195e-05,2]
[422996072,1779729038000,-500.0,6.195e-05,2]
[422996094,1779729038000,-500.0,6.195e-05,2]
[422996106,1779729038000,-632.54709911,6.195e-05,2]
[422996157,1779729038000,-207474.63224933,6.547e-05,2]
[422996143,1779729038000,-1056.33576674,6.289e-05,2]
[422996154,1779729038000,-2412.0,6.547e-05,2]
[422996150,1779729038000,-570.58396529,6.516e-05,2]
[422996152,1779729038000,-7809.45914519,6.547e-05,2]
[422996141,1779729038000,-1056.33576674,6.289e-05,2]
[422996147,1779729038000,-353.90606809,6.291e-05,2]
[422996145,1779729038000,-1056.33576674,6.289e-05,2]
[422996135,1779729038000,-1056.33576674,6.289e-05,2]
[422996159,1779729038000,-39497.58423713,6.547e-05,2]
[422996139,1779729038000,-1056.33576674,6.289e-05,2]
[422996137,1779729038000,-1056.33576674,6.289e-05,2]
[422996134,1779729038000,-1056.33576674,6.289e-05,2]
[422996149,1779729038000,-177.8614456,6.516e-05,2]
[422996119,1779729038000,-500.0,6.195e-05,2]
[422996132,1779729038000,-1056.33576674,6.289e-05,2]
[422996092,1779729038000,-500.0,6.195e-05,2]
[422996108,1779729038000,-500.0,6.195e-05,2]
[422996110,1779729038000,-500.0,6.195e-05,2]
[422996123,1779729038000,-1056.33576674,6.289e-05,2]
[422996129,1779729038000,-1056.33576674,6.289e-05,2]
[422996112,1779729038000,-500.0,6.195e-05,2]
[422996130,1779729038000,-1056.33576674,6.289e-05,2]
[422996117,1779729038000,-500.0,6.195e-05,2]
[422996121,1779729038000,-1018.31138317,6.289e-05,2]
[422996125,1779729038000,-1056.33576674,6.289e-05,2]
[422996113,1779729038000,-500.0,6.195e-05,2]
[422996126,1779729038000,-1056.33576674,6.289e-05,2]
[422996097,1779729038000,-500.0,6.195e-05,2]
[422996254,1779729046000,-2116.81261667,6.482e-05,2]
[422996308,1779730235000,-273.43775859,5.506e-05,2]
[422996315,1779730235000,-500.0,5.506e-05,2]
[422996317,1779730235000,-500.0,5.506e-05,2]
[422996319,1779730235000,-500.0,5.506e-05,2]
[422996314,1779730235000,-500.0,5.506e-05,2]
[422996321,1779730235000,-500.0,5.506e-05,2]
[422996312,1779730235000,-364.19189044,5.506e-05,2]
[422996306,1779730235000,-439.49807186,5.506e-05,2]
[422996303,1779730235000,-500.0,5.506e-05,2]
[422996304,1779730235000,-227.2790093,5.506e-05,2]
[422996305,1779730235000,-500.0,5.506e-05,2]
[422996302,1779730235000,-152.0,5.452e-05,2]
[422996301,1779730235000,-4848.0,5.452e-05,2]
[422996323,1779730235000,-500.0,5.506e-05,2]
[422996310,1779730235000,-135.80810956,5.506e-05,2]
[422996324,1779730235000,-500.0,5.506e-05,2]
[422996307,1779730235000,-60.50192814,5.506e-05,2]
[422996327,1779730235000,-500.0,5.506e-05,2]
[422996322,1779730235000,-500.0,5.506e-05,2]
[422996340,1779730235000,-258.8950145,5.506e-05,2]
[422996339,1779730235000,-500.0,5.506e-05,2]
[422996338,1779730235000,-500.0,5.506e-05,2]
[422996337,1779730235000,-497.94400839,5.506e-05,2]
[422996335,1779730235000,-500.0,5.506e-05,2]
[422996332,1779730235000,-500.0,5.506e-05,2]
[422996336,1779730235000,-500.0,5.506e-05,2]
[422996333,1779730235000,-500.0,5.506e-05,2]
[422996331,1779730235000,-500.0,5.506e-05,2]
[422996330,1779730235000,-500.0,5.506e-05,2]
[422996328,1779730235000,-500.0,5.506e-05,2]
[422996329,1779730235000,-500.0,5.506e-05,2]
[422996325,1779730235000,-500.0,5.506e-05,2]
[422996334,1779730235000,-500.0,5.506e-05,2]
[422996326,1779730235000,-500.0,5.506e-05,2]
[422996377,1779730238000,-166.0,6.616e-05,2]
[422996372,1779730238000,-1644.568171,6.531e-05,2]
[422996375,1779730238000,-166.0,6.616e-05,2]
[422996371,1779730238000,-1644.568171,6.287e-05,2]
[422996373,1779730238000,-651.0,6.616e-05,2]
[422996370,1779730238000,-1644.568171,6.042e-05,2]
[422996374,1779730238000,-651.0,6.616e-05,2]
[422996379,1779730238000,-166.0,6.616e-05,2]
[422996376,1779730238000,-651.0,6.616e-05,2]
[422996378,1779730238000,-651.0,6.616e-05,2]
[422996388,1779730238000,-651.0,6.616e-05,2]
[422996381,1779730238000,-651.0,6.616e-05,2]
[422996382,1779730238000,-651.0,6.616e-05,2]
[422996385,1779730238000,-651.0,6.616e-05,2]
[422996383,1779730238000,-651.0,6.616e-05,2]
[422996384,1779730238000,-180.0,6.616e-05,2]
[422996395,1779730238000,-651.0,6.616e-05,2]
[422996369,1779730238000,-1644.568171,5.798e-05,2]
[422996391,1779730238000,-595.58159114,6.616e-05,2]
[422996387,1779730238000,-180.0,6.616e-05,2]
[422996393,1779730238000,-651.0,6.616e-05,2]
[422996380,1779730238000,-651.0,6.616e-05,2]
[422996362,1779730238000,-1014.41506845,5.617e-05,2]
[422996366,1779730238000,-1014.41506845,5.617e-05,2]
[422996360,1779730238000,-1014.41506845,5.617e-05,2]
[422996345,1779730238000,-241.1049855,5.506e-05,2]
[422996346,1779730238000,-500.0,5.506e-05,2]
[422996350,1779730238000,-1014.41506845,5.617e-05,2]
[422996349,1779730238000,-355.75036168,5.591e-05,2]
[422996348,1779730238000,-3666.09500516,5.507e-05,2]
[422996351,1779730238000,-1014.41506845,5.617e-05,2]
[422996353,1779730238000,-1014.41506845,5.617e-05,2]
[422996355,1779730238000,-1014.41506845,5.617e-05,2]
[422996390,1779730238000,-651.0,6.616e-05,2]
[422996354,1779730238000,-1014.41506845,5.617e-05,2]
[422996352,1779730238000,-1014.41506845,5.617e-05,2]
[422996347,1779730238000,-1333.90499484,5.507e-05,2]
[422996357,1779730238000,-1014.41506845,5.617e-05,2]
[422996365,1779730238000,-1014.41506845,5.617e-05,2]
[422996356,1779730238000,-1014.41506845,5.617e-05,2]
[422996358,1779730238000,-1014.41506845,5.617e-05,2]
[422996368,1779730238000,-1014.41506845,5.617e-05,2]
[422996367,1779730238000,-1014.41506845,5.617e-05,2]
[422996364,1779730238000,-1014.41506845,5.617e-05,2]
[422996359,1779730238000,-1014.41506845,5.617e-05,2]
[422996363,1779730238000,-1014.41506845,5.617e-05,2]
[422996361,1779730238000,-1014.41506845,5.617e-05,2]
[422996386,1779730238000,-651.0,6.616e-05,2]
[422996441,1779730238000,-12872.03213147,7.3e-05,2]
[422996392,1779730238000,-651.0,6.616e-05,2]
[422996427,1779730238000,-300.0,7.27e-05,2]
[422996426,1779730238000,-300.0,7.27e-05,2]
[422996421,1779730238000,-326.0419999,7.154e-05,2]
[422996429,1779730238000,-300.0,7.27e-05,2]
[422996428,1779730238000,-300.0,7.27e-05,2]
[422996423,1779730238000,-236.2494376,7.154e-05,2]
[422996420,1779730238000,-458.3922133,7.154e-05,2]
[422996422,1779730238000,-326.0270599,7.154e-05,2]
[422996430,1779730238000,-300.0,7.27e-05,2]
[422996424,1779730238000,-659.63094732,7.208e-05,2]
[422996438,1779730238000,-300.0,7.27e-05,2]
[422996439,1779730238000,-300.0,7.27e-05,2]
[422996431,1779730238000,-300.0,7.27e-05,2]
[422996434,1779730238000,-300.0,7.27e-05,2]
[422996432,1779730238000,-300.0,7.27e-05,2]
[422996442,1779730238000,-360.71960534,7.3e-05,2]
[422996435,1779730238000,-300.0,7.27e-05,2]
[422996433,1779730238000,-300.0,7.27e-05,2]
[422996436,1779730238000,-300.0,7.27e-05,2]
[422996437,1779730238000,-300.0,7.27e-05,2]
[422996389,1779730238000,-180.68035774,6.616e-05,2]
[422996425,1779730238000,-2635.88526551,7.208e-05,2]
[422996419,1779730238000,-151.0,7.154e-05,2]
[422996440,1779730238000,-300.0,7.27e-05,2]
[422996418,1779730238000,-151.0,7.154e-05,2]
[422996394,1779730238000,-164.0,6.616e-05,2]
[422996414,1779730238000,-1213.04241298,7.087e-05,2]
[422996397,1779730238000,-651.0,6.616e-05,2]
[422996399,1779730238000,-651.0,6.616e-05,2]
[422996396,1779730238000,-164.0,6.616e-05,2]
[422996398,1779730238000,-167.04656377,6.616e-05,2]
[422996403,1779730238000,-651.0,6.616e-05,2]
[422996404,1779730238000,-651.0,6.616e-05,2]
[422996401,1779730238000,-651.0,6.616e-05,2]
[422996406,1779730238000,-651.0,6.616e-05,2]
[422996402,1779730238000,-651.0,6.616e-05,2]
[422996400,1779730238000,-651.0,6.616e-05,2]
[422996416,1779730238000,-2985.79602925,7.1e-05,2]
[422996409,1779730238000,-500.0,6.752e-05,2]
[422996408,1779730238000,-500.0,6.752e-05,2]
[422996407,1779730238000,-500.0,6.752e-05,2]
[422996410,1779730238000,-447.75852446,6.752e-05,2]
[422996412,1779730238000,-1644.568171,7.019e-05,2]
[422996413,1779730238000,-1067.7493467,7.019e-05,2]
[422996417,1779730238000,-151.0,7.154e-05,2]
[422996415,1779730238000,-2439.75027186,7.1e-05,2]
[422996405,1779730238000,-651.0,6.616e-05,2]
[422996411,1779730238000,-1644.568171,6.775e-05,2]
[422996477,1779730239000,-500.0,8.219e-05,2]
[422996483,1779730239000,-1156.12,8.219e-05,2]
[422996471,1779730239000,-501.01949098,8.219e-05,2]
[422996487,1779730239000,-500.0,8.219e-05,2]
[422996503,1779730239000,-515.71346488,8.219e-05,2]
[422996478,1779730239000,-500.0,8.219e-05,2]
[422996485,1779730239000,-905.56,8.219e-05,2]
[422996482,1779730239000,-500.0,8.219e-05,2]
[422996486,1779730239000,-501.27976218,8.219e-05,2]
[422996469,1779730239000,-500.0,8.219e-05,2]
[422996484,1779730239000,-500.0,8.219e-05,2]
[422996488,1779730239000,-500.0,8.219e-05,2]
[422996479,1779730239000,-500.0,8.219e-05,2]
[422996496,1779730239000,-500.0,8.219e-05,2]
[422996481,1779730239000,-500.0,8.219e-05,2]
[422996490,1779730239000,-500.0,8.219e-05,2]
[422996492,1779730239000,-500.0,8.219e-05,2]
[422996497,1779730239000,-500.0,8.219e-05,2]
[422996498,1779730239000,-500.0,8.219e-05,2]
[422996500,1779730239000,-500.0,8.219e-05,2]
[422996499,1779730239000,-500.0,8.219e-05,2]
[422996491,1779730239000,-500.0,8.219e-05,2]
[422996493,1779730239000,-500.0,8.219e-05,2]
[422996495,1779730239000,-500.0,8.219e-05,2]
[422996494,1779730239000,-500.0,8.219e-05,2]
[422996467,1779730239000,-500.0,8.219e-05,2]
[422996480,1779730239000,-500.0,8.219e-05,2]
[422996466,1779730239000,-500.0,8.219e-05,2]
[422996448,1779730239000,-958.13872617,7.5e-05,2]
[422996472,1779730239000,-501.25386768,8.219e-05,2]
[422996444,1779730239000,-600.0,7.343e-05,2]
[422996445,1779730239000,-884.63179067,7.36e-05,2]
[422996443,1779730239000,-5912.24826319,7.3e-05,2]
[422996446,1779730239000,-1803.43022758,7.46e-05,2]
[422996447,1779730239000,-1874.95220461,7.5e-05,2]
[422996449,1779730239000,-1038.99014894,7.5e-05,2]
[422996450,1779730239000,-2126.23804142,7.5e-05,2]
[422996453,1779730239000,-3020.20403925,7.726e-05,2]
[422996451,1779730239000,-2190.82752272,7.5e-05,2]
[422996455,1779730239000,-3249.41616473,7.752e-05,2]
[422996454,1779730239000,-3020.20403925,7.726e-05,2]
[422996452,1779730239000,-419.78542679,7.591e-05,2]
[422996456,1779730239000,-325.9692126,7.957e-05,2]
[422996458,1779730239000,-456.7200949,7.976e-05,2]
[422996461,1779730239000,-720.0,8.077e-05,2]
[422996459,1779730239000,-200.27697,7.978e-05,2]
[422996460,1779730239000,-456.7008752,7.978e-05,2]
[422996457,1779730239000,-151.0,7.963e-05,2]
[422996463,1779730239000,-1863.294782,8.219e-05,2]
[422996462,1779730239000,-3780.6547,8.219e-05,2]
[422996465,1779730239000,-500.0,8.219e-05,2]
[422996473,1779730239000,-500.61820628,8.219e-05,2]
[422996464,1779730239000,-1622.950875,8.219e-05,2]
[422996474,1779730239000,-500.0,8.219e-05,2]
[422996468,1779730239000,-989.6,8.219e-05,2]
[422996470,1779730239000,-500.0,8.219e-05,2]
[422996476,1779730239000,-500.0,8.219e-05,2]
[422996475,1779730239000,-500.0,8.219e-05,2]
[422996501,1779730239000,-500.0,8.219e-05,2]
[422996489,1779730239000,-500.0,8.219e-05,2]
[422996512,1779730239000,-500.0,8.219e-05,2]
[422996539,1779730239000,-500.0,8.219e-05,2]
[422996536,1779730239000,-500.0,8.219e-05,2]
[422996530,1779730239000,-500.96094689,8.219e-05,2]
[422996541,1779730239000,-1714.97,8.219e-05,2]
[422996535,1779730239000,-500.0,8.219e-05,2]
[422996544,1779730239000,-500.0,8.219e-05,2]
[422996547,1779730239000,-500.0,8.219e-05,2]
[422996553,1779730239000,-500.0,8.219e-05,2]
[422996548,1779730239000,-500.0,8.219e-05,2]
[422996550,1779730239000,-500.0,8.219e-05,2]
[422996546,1779730239000,-500.27588318,8.219e-05,2]
[422996549,1779730239000,-500.0,8.219e-05,2]
[422996545,1779730239000,-502.24506299,8.219e-05,2]
[422996552,1779730239000,-500.0,8.219e-05,2]
[422996551,1779730239000,-225.07600566,8.219e-05,2]
[422996554,1779730239000,-500.0,8.219e-05,2]
[422996555,1779730239000,-500.0,8.219e-05,2]
[422996556,1779730239000,-500.0,8.219e-05,2]
[422996557,1779730239000,-500.0,8.219e-05,2]
[422996561,1779730239000,-500.0,8.219e-05,2]
[422996562,1779730239000,-500.0,8.219e-05,2]
[422996564,1779730239000,-500.0,8.219e-05,2]
[422996558,1779730239000,-500.0,8.219e-05,2]
[422996565,1779730239000,-500.0,8.219e-05,2]
[422996559,1779730239000,-500.2344118,8.219e-05,2]
[422996560,1779730239000,-500.0,8.219e-05,2]
[422996502,1779730239000,-594.44,8.219e-05,2]
[422996534,1779730239000,-500.0,8.219e-05,2]
[422996533,1779730239000,-500.0,8.219e-05,2]
[422996563,1779730239000,-500.0,8.219e-05,2]
[422996537,1779730239000,-500.0,8.219e-05,2]
[422996538,1779730239000,-500.0,8.219e-05,2]
[422996514,1779730239000,-500.0,8.219e-05,2]
[422996510,1779730239000,-714.29,8.219e-05,2]
[422996506,1779730239000,-500.0,8.219e-05,2]
[422996504,1779730239000,-500.0,8.219e-05,2]
[422996508,1779730239000,-500.0,8.219e-05,2]
[422996511,1779730239000,-500.0,8.219e-05,2]
[422996513,1779730239000,-900.94,8.219e-05,2]
[422996507,1779730239000,-500.0,8.219e-05,2]
[422996509,1779730239000,-500.0,8.219e-05,2]
[422996515,1779730239000,-500.0,8.219e-05,2]
[422996518,1779730239000,-500.0,8.219e-05,2]
[422996519,1779730239000,-500.0,8.219e-05,2]
[422996517,1779730239000,-500.0,8.219e-05,2]
[422996505,1779730239000,-500.0,8.219e-05,2]
[422996520,1779730239000,-500.0,8.219e-05,2]
[422996516,1779730239000,-500.0,8.219e-05,2]
[422996542,1779730239000,-500.0,8.219e-05,2]
[422996529,1779730239000,-508.09523045,8.219e-05,2]
[422996528,1779730239000,-500.0,8.219e-05,2]
[422996527,1779730239000,-500.0,8.219e-05,2]
[422996531,1779730239000,-500.0,8.219e-05,2]
[422996526,1779730239000,-500.0,8.219e-05,2]
[422996524,1779730239000,-500.0,8.219e-05,2]
[422996525,1779730239000,-1336.65,8.219e-05,2]
[422996521,1779730239000,-401.98627526,8.219e-05,2]
[422996532,1779730239000,-500.0,8.219e-05,2]
[422996522,1779730239000,-500.0,8.219e-05,2]
[422996523,1779730239000,-500.0,8.219e-05,2]
[422996610,1779730240000,-500.0,8.219e-05,2]
[422996606,1779730240000,-585.61333967,8.219e-05,2]